bitfinex/quotes_SOLUSD_20241225
["timestamp","ask_amount","ask_price","bid_price","bid_amount"]
[1735133282902,23.776884,196.68,196.64,9.93873292]
[1735133283084,1.5827,196.71,196.66,9.93873292]
[1735133283280,0.95346619,196.74,196.68,9.93873292]
[1735133284702,23.776884,196.73,196.68,9.93873292]
[1735133284902,0.95329851,196.72,196.68,9.93873292]
[1735133285813,24.73013296,196.73,196.68,9.93873292]
[1735133286001,0.9531925,196.74,196.68,9.93873292]
[1735133286203,23.776884,196.74,196.7,9.93873292]
[1735133286995,8.9533435,196.75,196.7,9.93873292]
[1735133287305,8.0002,196.75,196.7,9.93873292]
[1735133290544,0.95310039,196.78,196.73,20.0]
[1735133290691,0.95310039,196.78,196.76,9.93873292]
[1735133291021,0.95295601,196.81,196.76,9.93873292]
[1735133291202,0.95281506,196.83,196.76,9.93873292]
[1735133291592,0.95281506,196.83,196.73,20.0]
[1735133291781,0.95281506,196.83,196.76,9.93873292]
[1735133292589,23.776884,196.82,196.76,9.93873292]
[1735133292921,0.9528051,196.81,196.76,9.93873292]
[1735133293223,24.72967606,196.82,196.76,9.93873292]
[1735133293522,24.72967606,196.82,196.78,9.93873292]
[1735133294183,23.776884,196.82,196.78,9.93873292]
[1735133296096,8.1824,196.84,196.78,9.93873292]
[1735133297029,0.95266195,196.83,196.78,9.93873292]
[1735133297830,23.776884,196.82,196.71,16.35412864]
[1735133298001,23.776884,196.8,196.74,9.93873292]
[1735133298208,0.95297392,196.79,196.74,9.93873292]
[1735133298420,23.776884,196.8,196.76,9.93873292]
[1735133298926,0.95286953,196.79,196.76,9.93873292]
[1735133299431,23.776884,196.8,196.76,9.93873292]
[1735133299911,0.95286848,196.79,196.76,9.93873292]
[1735133300111,0.95289179,196.83,196.76,9.93873292]
[1735133300314,23.776884,196.82,196.76,9.93873292]
[1735133300525,0.95283029,196.81,196.76,9.93873292]
[1735133305753,23.776884,196.8,196.75,20.0]
[1735133305923,0.95295893,196.79,196.75,29.93873292]
[1735133313368,0.95295893,196.79,196.77,9.93873292]
[1735133315435,0.9528873,196.79,196.77,9.93873292]
[1735133315635,0.95288761,196.8,196.77,9.93873292]
[1735133322444,23.776884,196.82,196.77,9.93873292]
[1735133324445,0.95276444,196.81,196.77,9.93873292]
[1735133324646,0.95276444,196.81,196.74,20.0]
[1735133324957,23.776884,196.8,196.77,9.93873292]
[1735133325268,23.776884,196.78,196.74,20.0]
[1735133325442,0.95303689,196.77,196.76,20.0]
[1735133326982,23.776884,196.78,196.76,20.0]
[1735133327288,23.776884,196.78,196.75,9.93873292]
[1735133327487,0.95296856,196.77,196.75,9.93873292]
[1735133327852,23.776884,196.78,196.75,9.93873292]
[1735133330194,0.95296986,196.77,196.75,9.93873292]
[1735133330360,0.95296986,196.77,196.73,29.93873292]
[1735133334476,0.95296986,196.77,196.73,29.79770116]
[1735133343984,0.95300775,196.81,196.73,29.79770116]
[1735133344284,23.776884,196.8,196.73,29.79770116]
[1735133344462,0.95296549,196.79,196.73,29.79770116]
[1735133348191,0.12549,196.78,196.7,2.07430405]
[1735133348367,23.776884,196.76,196.69,22.64883292]
[1735133348561,0.95320621,196.75,196.69,22.64883292]
[1735133350283,0.95320621,196.75,196.7,9.93873292]
[1735133364780,0.9531741,196.77,196.72,9.93873292]
[1735133364987,0.9531741,196.77,196.74,9.93873292]
[1735133371615,7.7513,196.78,196.76,9.93873292]
[1735133371904,0.9530484,196.8,196.76,9.93873292]
[1735133372399,0.9530484,196.8,196.73,12.7077]
[1735133372601,0.9530484,196.8,196.76,9.93873292]
[1735133372898,0.95289216,196.81,196.76,9.93873292]
[1735133373501,0.95287646,196.87,196.8,9.93873292]
[1735133373688,0.95287646,196.87,196.82,9.93873292]
[1735133376092,7.8484,196.88,196.8,20.0]
[1735133376291,6.245,196.88,196.84,9.93873292]
[1735133376473,7.9184,196.93,196.86,9.93873292]
[1735133376679,0.95231848,196.92,196.88,9.93873292]
[1735133377778,0.95231848,196.92,196.82,12.7015]
[1735133377978,0.95231848,196.92,196.87,9.93873292]
[1735133384917,0.95231848,196.92,196.82,12.7015]
[1735133385092,10.8910514,196.92,196.84,9.93873292]
[1735133385291,0.12549,196.91,196.84,9.93873292]
[1735133385627,0.12549,196.91,196.8,20.0]
[1735133385628,10.89125551,196.9,196.82,29.93873292]
[1735133385919,9.93873292,196.88,196.82,20.0]
[1735133386222,0.95264946,196.87,196.82,9.93873292]
[1735133386416,0.95251831,196.89,196.84,9.93873292]
[1735133387337,0.95247198,196.91,196.84,9.93873292]
[1735133390663,0.95247198,196.91,196.82,9.93873292]
[1735133391008,9.93873292,196.9,196.82,9.93873292]
[1735133391206,1.07809573,196.89,196.82,9.93873292]
[1735133394132,9.93873292,196.88,196.8,9.93873292]
[1735133394432,0.95268693,196.87,196.8,9.93873292]
[1735133396835,0.95268693,196.87,196.82,9.93873292]
[1735133397037,1.07808123,196.89,196.82,9.93873292]
[1735133399226,0.95259123,196.89,196.82,9.93873292]
[1735133399612,0.95252161,196.91,196.82,9.93873292]
[1735133405668,0.95252161,196.91,196.84,9.93873292]
[1735133407133,10.89125453,196.91,196.83,29.93873292]
[1735133410348,9.93873292,196.89,196.77,13.46702139]
[1735133410530,7.7862,196.87,196.8,20.0]
[1735133410730,0.95264495,196.86,196.8,29.93873292]
[1735133412051,0.95264495,196.86,196.77,12.7051]
[1735133412259,0.95264495,196.86,196.73,13.469188]
[1735133412427,10.06422292,196.85,196.77,9.93873292]
[1735133412630,10.06422292,196.83,196.77,9.93873292]
[1735133412939,0.95291234,196.82,196.75,9.93873292]
[1735133413256,1.5475,196.8,196.74,9.93873292]
[1735133413558,0.95301565,196.79,196.74,9.93873292]
[1735133413942,1.5475,196.8,196.74,9.93873292]
[1735133414156,0.45437489,196.79,196.74,9.93873292]
[1735133415959,2.00187489,196.8,196.74,9.93873292]
[1735133417063,1.5475,196.8,196.76,9.93873292]
[1735133418933,2.00187489,196.8,196.76,9.93873292]
[1735133419250,2.00187489,196.8,196.74,9.93873292]
[1735133420851,2.00187489,196.8,196.66,4.64465478]
[1735133420852,10.06422292,196.79,196.66,4.64465478]
[1735133421058,9.93873292,196.77,196.69,9.93873292]
[1735133421367,0.45437489,196.76,196.69,9.93873292]
[1735133427758,6.2073,196.75,196.69,9.93873292]
[1735133428064,0.45437489,196.74,196.69,9.93873292]
[1735133428660,1.5953,196.73,196.65,12.7124]
[1735133428837,0.45437489,196.72,196.67,9.93873292]
[1735133430538,1.5953,196.73,196.69,9.93873292]
[1735133431167,0.45437489,196.72,196.69,9.93873292]
[1735133431956,0.45437489,196.72,196.65,12.7124]
[1735133432157,0.45437489,196.72,196.68,9.93873292]
[1735133432740,0.45437489,196.72,196.64,20.0]
[1735133433062,0.45437489,196.72,196.66,9.93873292]
[1735133434544,6.3258,196.71,196.66,9.93873292]
[1735133434739,0.45437489,196.7,196.66,9.93873292]
[1735133436455,6.3258,196.71,196.68,9.93873292]
[1735133437267,0.45437489,196.7,196.68,9.93873292]
[1735133437862,6.3258,196.71,196.68,9.93873292]
[1735133438267,0.45437489,196.7,196.68,9.93873292]
[1735133438765,0.45437489,196.7,196.66,9.93873292]
[1735133446687,6.3258,196.71,196.66,9.93873292]
[1735133447995,0.45437489,196.7,196.66,9.93873292]
[1735133448181,6.3258,196.71,196.66,9.43873292]
[1735133449502,6.3258,196.71,196.7,9.93873292]
[1735133449802,1.5953,196.73,196.7,9.93873292]
[1735133452716,1.5953,196.73,196.68,29.93873292]
[1735133455692,1.5953,196.73,196.68,20.0]
[1735133455893,0.45437489,196.72,196.68,20.0]
[1735133457737,0.45437489,196.72,196.62,12.7145]
[1735133457902,0.45437489,196.72,196.66,9.93763438]
[1735133458316,10.39200927,196.72,196.65,9.93763438]
[1735133459718,15.98783438,196.71,196.64,9.93763438]
[1735133459916,0.45437489,196.7,196.64,9.93763438]
[1735133460839,10.39200927,196.7,196.63,9.93763438]
[1735133461338,9.93763438,196.69,196.62,29.93763438]
[1735133461517,0.45437489,196.68,196.62,20.0]
[1735133461715,0.45437489,196.68,196.62,29.93763438]
[1735133462410,10.39200927,196.68,196.59,12.7166]
[1735133462631,0.12549,196.67,196.61,9.93763438]
[1735133462828,1.5057,196.66,196.6,9.93763438]
[1735133463028,6.0502,196.64,196.59,9.93763438]
[1735133463329,0.45437489,196.63,196.58,9.93763438]
[1735133464423,0.45437489,196.63,196.57,9.93763438]
[1735133464743,10.39200927,196.63,196.56,9.93763438]
[1735133465039,0.45437489,196.63,196.58,9.93763438]
[1735133466028,0.45437489,196.63,196.57,9.93763438]
[1735133466224,10.39200927,196.63,196.55,20.0]
[1735133466545,0.45437489,196.63,196.57,9.93763438]
[1735133466747,9.93763438,196.61,196.55,20.0]
[1735133467059,1.6534,196.59,196.53,9.93763438]
[1735133467256,0.45437489,196.58,196.52,9.93763438]
[1735133467545,0.12549,196.56,196.48,1.3210949]
[1735133467737,9.93763438,196.55,196.48,1.3210949]
[1735133467936,0.45437489,196.54,196.49,9.93763438]
[1735133468141,0.45437489,196.54,196.48,11.25872928]
[1735133468450,1.77889,196.51,196.48,1.3210949]
[1735133468627,0.45437489,196.5,196.48,1.3210949]
[1735133469441,16.67062438,196.49,196.48,1.3210949]
[1735133470744,6.73299,196.49,196.48,1.3210949]
[1735133471421,16.67062438,196.49,196.48,1.3210949]
[1735133472128,0.12549,196.48,196.4,9.93763438]
[1735133472443,9.93763438,196.46,196.4,9.93763438]
[1735133472623,0.45437489,196.45,196.4,9.93763438]
[1735133473024,0.45437489,196.45,196.42,9.93763438]
[1735133473241,0.45437489,196.48,196.43,9.93763438]
[1735133473453,0.12549,196.43,196.36,9.93763438]
[1735133473649,9.93763438,196.42,196.35,9.93763438]
[1735133473947,0.45437489,196.41,196.36,9.93763438]
[1735133474842,0.45437489,196.42,196.36,9.93763438]
[1735133475036,9.93763438,196.38,196.29,9.937634]
[1735133475349,0.45437489,196.37,196.31,9.93763438]
[1735133475555,10.39200927,196.4,196.27,12.737]
[1735133475845,0.45437489,196.4,196.33,9.93763438]
[1735133476056,0.45437489,196.4,196.34,9.93763438]
[1735133476229,0.45437489,196.4,196.33,9.93763438]
[1735133476431,10.39200927,196.4,196.33,9.93763438]
[1735133476949,0.45437489,196.4,196.33,9.93763438]
[1735133477130,0.45437489,196.4,196.34,9.93763438]
[1735133477436,0.45437489,196.4,196.33,9.93763438]
[1735133477943,0.45437489,196.4,196.37,9.93763438]
[1735133478142,0.45437489,196.4,196.36,9.93763438]
[1735133478853,9.93763438,196.39,196.31,20.0]
[1735133479023,10.39200927,196.38,196.31,20.0]
[1735133479443,10.39200927,196.38,196.31,9.93763438]
[1735133480340,10.39200927,196.38,196.29,20.0]
[1735133480654,0.12549,196.34,196.28,9.93763438]
[1735133480860,0.57986489,196.34,196.28,9.93763438]
[1735133481058,0.57986489,196.34,196.27,9.93763438]
[1735133481470,0.57986489,196.34,196.22,14.73920278]
[1735133481660,0.12549,196.32,196.26,9.93763438]
[1735133481962,9.93763438,196.31,196.2,1.5231]
[1735133482149,0.57986489,196.3,196.24,9.93763438]
[1735133482354,0.57986489,196.3,196.2,1.5231]
[1735133482664,0.57986489,196.3,196.24,9.93763438]
[1735133482863,0.45437489,196.3,196.24,9.93763438]
[1735133483071,0.57986489,196.31,196.25,9.93763438]
[1735133483567,0.57986489,196.31,196.24,9.93763438]
[1735133483939,0.57986489,196.31,196.25,9.93763438]
[1735133484135,0.45437489,196.31,196.25,15.59520686]
[1735133484367,0.45437489,196.31,196.26,15.59520686]
[1735133485174,16.04958175,196.31,196.24,15.59520686]
[1735133485764,15.59520686,196.3,196.23,15.59520686]
[1735133485964,0.45437489,196.29,196.23,15.59520686]
[1735133486472,0.45437489,196.29,196.24,15.59520686]
[1735133486651,0.45437489,196.29,196.25,15.59520686]
[1735133486849,0.45437489,196.31,196.27,15.59520686]
[1735133489173,0.45437489,196.31,196.25,15.59520686]
[1735133489476,16.04958175,196.31,196.23,15.59520686]
[1735133490549,23.776884,196.3,196.23,15.59520686]
[1735133490755,0.45437489,196.29,196.24,15.59520686]
[1735133491379,0.45437489,196.29,196.26,15.59520686]
[1735133491556,0.45437489,196.31,196.26,15.59520686]
[1735133491750,0.45437489,196.31,196.27,15.59520686]
[1735133491956,8.2122,196.32,196.29,15.59520686]
[1735133492281,6.6413,196.32,196.29,15.59520686]
[1735133492872,6.6413,196.32,196.3,15.59520686]
[1735133493069,0.45437489,196.35,196.3,15.59520686]
[1735133493271,0.45437489,196.36,196.3,15.59520686]
[1735133493574,22.23650686,196.42,196.34,15.59520686]
[1735133493780,0.45437489,196.41,196.35,15.59520686]
[1735133494472,0.45437489,196.41,196.36,15.59520686]
[1735133494677,0.45437489,196.41,196.35,15.59520686]
[1735133495179,0.45437489,196.41,196.36,15.59520686]
[1735133495391,0.45437489,196.41,196.37,15.59520686]
[1735133495919,0.45437489,196.41,196.36,15.59520686]
[1735133496586,0.45437489,196.41,196.35,15.59520686]
[1735133497703,0.45437489,196.41,196.36,15.59520686]
[1735133497927,6.6413,196.42,196.38,15.59520686]
[1735133497928,7.09567489,196.42,196.38,15.59520686]
[1735133498091,6.6413,196.42,196.38,15.59520686]
[1735133498591,6.6413,196.42,196.37,15.59520686]
[1735133498796,7.09567489,196.42,196.37,15.59520686]
[1735133499927,7.09567489,196.42,196.36,15.59520686]
[1735133500844,6.5769,196.47,196.41,15.59520686]
[1735133501145,6.5769,196.47,196.43,15.59520686]
[1735133501440,7.03127489,196.47,196.4,15.59520686]
[1735133501815,7.03127489,196.47,196.41,15.59520686]
[1735133505346,15.59520686,196.46,196.39,15.59520686]
[1735133505543,15.59520686,196.44,196.37,15.59520686]
[1735133505847,0.45437489,196.43,196.37,15.59520686]
[1735133506354,0.45437489,196.43,196.38,15.59520686]
[1735133506714,0.45437489,196.44,196.38,15.59520686]
[1735133508744,0.45437489,196.45,196.38,15.59520686]
[1735133509514,0.45437489,196.45,196.39,15.59520686]
[1735133509948,0.45437489,196.45,196.37,15.59520686]
[1735133510114,34.19948807,196.45,196.37,9.96822918]
[1735133510773,10.42260407,196.45,196.37,9.96822918]
[1735133510928,10.42260407,196.45,196.36,20.0]
[1735133510929,0.45437489,196.45,196.38,9.96822918]
[1735133514675,10.42226069,196.45,196.38,9.9678858]
[1735133514838,9.9678858,196.42,196.36,20.0]
[1735133515045,10.42226069,196.41,196.3,12.7354]
[1735133515256,0.45437489,196.41,196.34,9.9678858]
[1735133515554,0.45437489,196.41,196.35,9.9678858]
[1735133516370,0.45437489,196.41,196.3,12.7354]
[1735133516371,10.42226069,196.41,196.3,12.7354]
[1735133516544,18.0836858,196.4,196.33,9.9678858]
[1735133516862,18.0836858,196.4,196.28,0.76383607]
[1735133516863,10.42226069,196.39,196.28,0.76383607]
[1735133517050,9.9678858,196.38,196.31,9.9678858]
[1735133517251,0.45437489,196.37,196.31,9.9678858]
[1735133517567,9.9678858,196.39,196.32,9.9678858]
[1735133517751,0.45437489,196.38,196.32,9.9678858]
[1735133518648,0.45437489,196.39,196.34,9.9678858]
[1735133518849,8.1158,196.4,196.36,9.9678858]
[1735133519969,8.1158,196.4,196.35,9.9678858]
[1735133520664,8.1158,196.4,196.36,9.9678858]
[1735133522372,0.45437489,196.39,196.34,9.9678858]
[1735133522665,0.45437489,196.39,196.32,9.9678858]
[1735133522867,10.42226069,196.39,196.32,9.9678858]
[1735133523368,0.45437489,196.39,196.32,9.9678858]
[1735133523671,0.45437489,196.39,196.32,9.97323858]
[1735133523849,10.42761347,196.39,196.32,9.97323858]
[1735133524966,8.1158,196.4,196.35,9.97323858]
[1735133525153,8.1158,196.4,196.36,9.97323858]
[1735133526081,6.4977,196.4,196.37,9.97323858]
[1735133526371,0.45437489,196.43,196.38,15.57609124]
[1735133526549,2.02497489,196.44,196.38,15.57609124]
[1735133529660,17.60106613,196.44,196.37,15.57609124]
[1735133530372,15.57609124,196.42,196.35,15.57609124]
[1735133530559,0.45437489,196.41,196.34,15.57609124]
[1735133531871,16.03046613,196.41,196.34,15.57609124]
[1735133532249,16.03046613,196.41,196.33,15.57609124]
[1735133532450,16.03046613,196.41,196.34,15.57609124]
[1735133533388,0.45437489,196.41,196.35,15.57609124]
[1735133533676,16.03046613,196.42,196.35,15.57609124]
[1735133535465,0.45437489,196.42,196.35,15.57609124]
[1735133535977,16.03046613,196.42,196.35,15.57609124]
[1735133538683,15.57609124,196.4,196.33,15.57609124]
[1735133538979,0.45437489,196.39,196.33,15.57609124]
[1735133540065,16.03046613,196.39,196.31,15.57609124]
[1735133540266,15.57609124,196.37,196.3,15.57609124]
[1735133540474,0.45437489,196.36,196.3,15.57609124]
[1735133541079,17.56546613,196.36,196.29,15.57609124]
[1735133541460,1.98937489,196.36,196.3,15.57609124]
[1735133542470,17.56546613,196.36,196.29,15.57609124]
[1735133543288,1.98937489,196.36,196.3,15.57609124]
[1735133543980,1.535,196.36,196.3,15.57609124]
[1735133544190,0.45437489,196.35,196.3,15.57609124]
[1735133544361,1.98937489,196.36,196.3,15.57609124]
[1735133545267,1.535,196.36,196.3,15.57609124]
[1735133546086,0.45437489,196.35,196.3,15.57609124]
[1735133546677,0.45437489,196.35,196.29,15.57609124]
[1735133548188,0.45437489,196.35,196.29,9.97611165]
[1735133548499,0.45437489,196.35,196.29,20.0]
[1735133548797,0.45437489,196.35,196.29,29.97611165]
[1735133549095,1.98937489,196.36,196.3,9.97611165]
[1735133549600,1.98937489,196.36,196.29,29.97611165]
[1735133553426,1.98937489,196.36,196.29,9.97611165]
[1735133553595,9.97611165,196.33,196.26,9.97611165]
[1735133553794,9.97611165,196.29,196.2,0.76417952]
[1735133553993,10.43048654,196.28,196.21,9.97611165]
[1735133554604,10.43048654,196.28,196.2,9.97611165]
[1735133554804,9.97611165,196.27,196.2,9.97611165]
[1735133555003,0.45437489,196.26,196.2,9.97611165]
[1735133555835,2.09107489,196.29,196.23,9.97611165]
[1735133556006,2.09107489,196.29,196.24,9.97611165]
[1735133556223,1.6367,196.29,196.26,9.97611165]
[1735133556424,1.6367,196.29,196.25,9.97611165]
[1735133557431,1.5754013,196.29,196.25,9.97611165]
[1735133558924,1.5754013,196.29,196.24,9.97611165]
[1735133559128,2.02977619,196.29,196.23,9.97611165]
[1735133559305,12.00588784,196.29,196.21,9.97611165]
[1735133559507,9.97611165,196.28,196.21,9.97611165]
[1735133559707,0.45437489,196.27,196.21,9.97611165]
[1735133560302,10.43048654,196.27,196.2,9.97611165]
[1735133560502,0.45437489,196.27,196.21,9.97611165]
[1735133563929,10.43048654,196.27,196.2,9.97611165]
[1735133564232,9.97611165,196.26,196.19,9.97611165]
[1735133564407,0.45437489,196.25,196.19,9.97611165]
[1735133565839,6.3369,196.24,196.15,0.76443287]
[1735133566006,6.3369,196.24,196.12,0.7644263]
[1735133566007,9.97611165,196.21,196.12,0.7644263]
[1735133566207,9.97611165,196.19,196.12,9.97611165]
[1735133566531,10.43048654,196.18,196.11,9.97611165]
[1735133566841,10.43048654,196.18,196.1,9.97611165]
[1735133566842,9.97611165,196.17,196.1,9.97611165]
[1735133567213,6.79127489,196.16,196.07,7.96891664]
[1735133567418,9.97611165,196.15,196.08,9.97611165]
[1735133567621,0.45437489,196.14,196.08,9.97611165]
[1735133567926,16.31301165,196.16,196.09,9.97611165]
[1735133568233,0.45437489,196.15,196.08,15.61997476]
[1735133568743,0.45437489,196.15,196.09,15.61997476]
[1735133572730,6.79127489,196.16,196.09,15.61997476]
[1735133576640,6.3369,196.16,196.09,15.61997476]
[1735133576829,6.3369,196.16,196.09,35.61997476]
[1735133577142,6.79127489,196.16,196.09,35.61997476]
[1735133577942,6.3369,196.16,196.09,35.61997476]
[1735133578112,6.3369,196.16,196.11,15.61997476]
[1735133579250,6.3369,196.16,196.09,20.0]
[1735133579449,6.79127489,196.16,196.09,15.61997476]
[1735133580428,6.3369,196.16,196.1,15.61997476]
[1735133581246,0.45437489,196.15,196.1,15.61997476]
[1735133581422,6.3369,196.16,196.1,15.61997476]
[1735133581756,21.67127476,196.21,196.13,15.61997476]
[1735133582127,6.0513,196.21,196.15,15.61997476]
[1735133583848,0.45437489,196.2,196.14,15.61997476]
[1735133584149,15.61997476,196.19,196.13,20.0]
[1735133586351,16.07434965,196.2,196.13,20.0]
[1735133586841,15.61997476,196.18,196.11,15.61997476]
[1735133587049,6.0513,196.21,196.1,15.61997476]
[1735133587050,16.07434965,196.17,196.1,15.61997476]
[1735133587243,15.61997476,196.18,196.1,15.61997476]
[1735133587449,0.45437489,196.17,196.1,15.61997476]
[1735133588153,0.45437489,196.17,196.1,29.9950167]
[1735133588351,0.45437489,196.17,196.11,20.0]
[1735133588852,9.9950167,196.18,196.11,29.9950167]
[1735133589426,0.45437489,196.17,196.11,20.0]
[1735133589637,17.8436167,196.16,196.07,12.7503]
[1735133589956,17.8436167,196.16,196.09,9.9950167]
[1735133590862,0.45437489,196.15,196.07,12.7503]
[1735133591044,0.45437489,196.15,196.09,9.9950167]
[1735133591665,17.8436167,196.16,196.09,9.9950167]
[1735133591836,7.8486,196.16,196.09,9.9950167]
[1735133592039,7.8486,196.16,196.1,9.9950167]
[1735133592263,7.8486,196.16,196.12,9.9950167]
[1735133592465,6.3093,196.16,196.13,9.9950167]
[1735133592761,1.5393,196.21,196.1,24.54149995]
[1735133592762,7.8486,196.21,196.15,9.9950167]
[1735133592941,7.8486,196.21,196.16,9.9950167]
[1735133594966,7.8486,196.21,196.13,12.7465]
[1735133595132,0.45437489,196.28,196.2,9.9950167]
[1735133595133,7.8486,196.26,196.2,9.9950167]
[1735133595460,17.8436167,196.31,196.24,9.9950167]
[1735133595836,7.8486,196.31,196.25,9.9950167]
[1735133596031,7.8486,196.31,196.26,9.9950167]
[1735133596236,7.8486,196.31,196.29,15.58986126]
[1735133596237,6.3093,196.31,196.29,15.58986126]
[1735133596446,6.3093,196.31,196.28,15.58986126]
[1735133597356,23.43846126,196.36,196.29,15.58986126]
[1735133597564,15.58986126,196.34,196.27,15.58986126]
[1735133597759,23.43846126,196.36,196.29,15.58986126]
[1735133598161,0.45437489,196.35,196.29,15.58986126]
[1735133598469,0.45437489,196.35,196.28,15.58986126]
[1735133598470,16.04423615,196.35,196.28,15.58986126]
[1735133598650,15.58986126,196.35,196.28,15.58986126]
[1735133599368,23.43846126,196.36,196.29,15.58986126]
[1735133599548,16.04423615,196.35,196.28,15.58986126]
[1735133601568,15.58986126,196.34,196.27,35.58986126]
[1735133601945,15.58986126,196.35,196.28,15.58986126]
[1735133602243,16.04423615,196.35,196.28,15.58986126]
[1735133602768,15.58986126,196.29,196.21,0.7640453]
[1735133602971,15.58986126,196.27,196.19,15.58986126]
[1735133603349,15.58986126,196.28,196.21,15.58986126]
[1735133603672,15.58986126,196.29,196.22,15.58986126]
[1735133604754,15.58986126,196.3,196.22,15.58986126]
[1735133604958,15.58986126,196.3,196.23,15.58986126]
[1735133606964,15.58986126,196.31,196.23,15.58986126]
[1735133607161,0.45437489,196.3,196.23,15.58986126]
[1735133607357,15.58986126,196.3,196.23,15.58986126]
[1735133608077,16.04423615,196.29,196.22,15.58986126]
[1735133608759,15.58986126,196.29,196.22,15.58986126]
[1735133609470,22.57763615,196.28,196.21,15.58986126]
[1735133609680,6.5334,196.28,196.22,15.58986126]
[1735133610252,6.5334,196.28,196.23,15.58986126]
[1735133610655,6.5334,196.28,196.24,15.58986126]
[1735133615590,6.5334,196.28,196.25,15.58986126]
[1735133616556,6.5334,196.28,196.24,15.58986126]
[1735133616757,6.5334,196.28,196.23,35.58986126]
[1735133618089,6.5334,196.28,196.24,15.58986126]
[1735133618390,6.5334,196.28,196.25,9.98116119]
[1735133620902,6.5334,196.28,196.23,30.74532267]
[1735133621093,6.5334,196.28,196.23,29.98116119]
[1735133621398,6.5334,196.28,196.23,9.98116119]
[1735133621570,6.5334,196.28,196.22,9.98116119]
[1735133622912,6.5334,196.28,196.23,9.98116119]
[1735133624288,6.5334,196.28,196.22,9.98116119]
[1735133626698,6.5334,196.28,196.23,9.98116119]
[1735133633909,6.5334,196.28,196.25,9.98116119]
[1735133634115,6.501,196.33,196.27,9.98116119]
[1735133634413,6.501,196.33,196.28,9.98116119]
[1735133635407,6.501,196.33,196.27,9.98116119]
[1735133637312,6.501,196.33,196.28,9.98116119]
[1735133640425,6.501,196.33,196.27,29.98116119]
[1735133641687,0.45437489,196.32,196.25,9.98116119]
[1735133641893,0.45437489,196.32,196.24,9.98116119]
[1735133641894,9.98116119,196.31,196.24,9.98116119]
[1735133642734,10.43553608,196.3,196.21,0.76418327]
[1735133642925,9.98116119,196.28,196.21,9.98116119]
[1735133643231,10.43553608,196.28,196.21,9.98116119]
[1735133644032,9.98116119,196.28,196.21,9.98116119]
[1735133644326,11.58246119,196.29,196.21,9.98116119]
[1735133644524,0.45437489,196.28,196.21,9.98116119]
[1735133645032,10.43553608,196.28,196.21,9.98116119]
[1735133645404,6.501,196.27,196.21,9.98116119]
[1735133645732,6.501,196.27,196.22,9.98116119]
[1735133646234,6.501,196.27,196.21,9.98116119]
[1735133647946,10.43553608,196.26,196.19,9.98116119]
[1735133648534,16.48216119,196.27,196.19,9.98116119]
[1735133648735,16.48216119,196.27,196.2,29.98116119]
[1735133650358,6.501,196.27,196.21,9.98116119]
[1735133650646,6.501,196.27,196.22,9.98116119]
[1735133650953,6.501,196.27,196.22,0.76426921]
[1735133651139,6.5232,196.32,196.26,9.98116119]
[1735133651308,6.5232,196.32,196.3,9.98116119]
[1735133651510,6.5232,196.32,196.29,9.98116119]
[1735133652341,6.5232,196.32,196.3,9.98116119]
[1735133654110,1.5037,196.35,196.31,9.98116119]
[1735133656939,1.5037,196.35,196.29,29.98116119]
[1735133657239,1.5037,196.35,196.3,9.98116119]
[1735133657838,0.45437489,196.41,196.32,9.98116119]
[1735133658021,9.98116119,196.4,196.32,9.98116119]
[1735133658937,0.45437489,196.41,196.32,9.98116119]
[1735133659141,10.43553608,196.41,196.32,9.98116119]
[1735133660640,16.50436119,196.42,196.34,9.98116119]
[1735133660844,16.50436119,196.42,196.35,9.98116119]
[1735133660845,6.5232,196.42,196.35,9.98116119]
[1735133661140,6.5232,196.42,196.36,9.98116119]
[1735133662443,6.5232,196.42,196.35,9.98116119]
[1735133663038,6.97757489,196.42,196.35,9.98116119]
[1735133663242,16.50436119,196.42,196.35,9.98116119]
[1735133663826,6.5232,196.42,196.36,9.98116119]
[1735133664033,6.5232,196.42,196.37,9.98116119]
[1735133667447,6.5232,196.42,196.39,29.98116119]
[1735133667752,27.48073856,196.46,196.4,9.98116119]
[1735133667945,6.0681,196.47,196.41,9.98116119]
[1735133669563,6.0681,196.47,196.43,9.98116119]
[1735133669745,7.96835879,196.6,196.45,9.98116119]
[1735133669746,16.04926119,196.52,196.45,9.98116119]
[1735133669950,0.45437489,196.51,196.45,9.98116119]
[1735133670545,16.04926119,196.52,196.45,9.98116119]
[1735133670852,16.04926119,196.52,196.44,9.98116119]
[1735133671853,6.0681,196.52,196.48,9.98116119]
[1735133673574,17.69006119,196.57,196.48,9.98116119]
[1735133674130,17.69006119,196.57,196.5,9.98116119]
[1735133677539,9.98116119,196.54,196.48,0.76315128]
[1735133677870,7.7089,196.57,196.45,9.98116119]
[1735133677871,9.98116119,196.52,196.45,9.98116119]
[1735133678567,10.43553608,196.51,196.41,0.76334454]
[1735133678761,10.43553608,196.51,196.44,9.98116119]